Cogmind - Beta 13 @@@ ROGUE MODE // 2024.04.27 @ 14:16:50 Player: SovietPaperclip Result: Self-destructed Performance ------------- Evolutions (2) 1000 Regions Visited (6) 1200 Robots Destroyed (31) 155 Value Destroyed (764) 764 Prototype IDs (2) 40 Alien Tech Used (0) 0 Bonus (0) 0 TOTAL SCORE: 3159 Bonus ------- None Cogmind --------- Core Integrity 535/550 Matter 219/300 Energy 20/100 System Corruption 1% Temperature Cool (0) Movement Rolling (135) Ox3 Location -8/Materials Parts ------- > --- POWER (1) -------- (None) > --- PROPULSION (4) --- Armored Wheel Armored Wheel > --- UTILITY (4) ------ Huge Storage Unit Improved Signal Interpreter Heavy Armor Plating > --- WEAPON (2) ------- (None) > --- INVENTORY (25) --- Armored Wheel High-capacity Matter Pod (200) Improved Sensor Array Heavy Armor Plating Heavy Armor Plating Heavy Armor Plating Improved Assault Rifle Advanced EMP Blaster Rocket Launcher Plasma Cutter Katana Peak State ------------ > --- POWER ------------ Light Nuclear Core > --- PROPULSION ------- Armored Wheel Armored Wheel Armored Wheel Armored Wheel > --- UTILITY ---------- Huge Storage Unit Improved Signal Interpreter Heavy Armor Plating > --- WEAPON ----------- Advanced EMP Blaster Advanced EMP Blaster > --- INVENTORY -------- Light Ion Engine Armored Wheel High-capacity Matter Pod Improved Sensor Array Heavy Armor Plating Heavy Armor Plating Heavy Armor Plating Heavy Armor Plating Assault Rifle Improved Assault Rifle Advanced EMP Blaster Rocket Launcher Plasma Cutter Katana [Rating: 33] Favorites ----------- Power Light Nuclear Core Engine Ion Engine Power Core Light Nuclear Core Propulsion Armored Wheel Treads Light Treads Wheel Armored Wheel Utility Huge Storage Unit Device Heat Sink Storage Huge Storage Unit Processor Signal Interpreter Protection Heavy Armor Plating Weapon Assault Rifle Ballistic Gun Assault Rifle Launcher Advanced EMP Blaster Build | -11 -10 -9 -9 -9 -8 -8 ------- Run | Yrd Mat Mat Min Exi Min Mat Slots Evolved 4 | . . 2 . . . 2 Power . | . . . . . . . Propulsion 2 | . . 1 . . . 1 Utility 2 | . . 1 . . . 1 Weapon . | . . . . . . . Parts Attached 32 | 6 7 7 1 . 1 10 Power 3 | 1 1 . . . . 1 Engine 2 | 1 . . . . . 1 Core 1 | . 1 . . . . . Reactor . | . . . . . . . Propulsion 7 | 2 2 2 . . . 1 Treads 3 | 2 . 1 . . . . Leg . | . . . . . . . Wheel 4 | . 2 1 . . . 1 Hover . | . . . . . . . Flight . | . . . . . . . Utility 10 | 1 3 2 1 . 1 2 Device 1 | . . 1 . . . . Storage 2 | 1 1 . . . . . Processor 2 | . . . 1 . . 1 Hackware . | . . . . . . . Protection 5 | . 2 1 . . 1 1 Artifact . | . . . . . . . Weapon 12 | 2 1 3 . . . 6 Energy Gun . | . . . . . . . Energy Cannon . | . . . . . . . Ballistic Gun 7 | 2 1 2 . . . 2 Ballistic Cannon . | . . . . . . . Launcher 5 | . . 1 . . . 4 Special Weapon . | . . . . . . . Impact Weapon . | . . . . . . . Slashing Weapon . | . . . . . . . Piercing Weapon . | . . . . . . . Special Melee Weapon . | . . . . . . . Unidentified Prototypes 2 | . . 2 . . . . Parts Lost 9 | . 2 1 . . . 6 Power 2 | . . . . . . 2 Propulsion 1 | . . . . . . 1 Utility 3 | . 1 1 . . . 1 Weapon 3 | . 1 . . . . 2 Highest Loss Streak 6 | . 1 1 . . . 6 To Critical Strikes . | . . . . . . . Average Slot Usage (%) 91 | . 97 79 88 88 86 88 Engine 5 | . 12 . . . . . Core 6 | . 1 11 11 11 11 8 Treads 5 | . 11 . . . . . Wheel 24 | . 16 25 33 33 33 36 Storage 12 | . 14 11 11 11 11 9 Processor 2 | . . . . 11 . 9 Protection 9 | . 11 8 10 . 9 9 Ballistic Gun 23 | . 28 21 22 22 22 12 Naked Turns . | . . . . . . . Heaviest Build 112 | 13 91 105 105 90 105 112 Greatest Support 48 | 40 40 36 36 36 36 48 Greatest Overweight (x) 4 | . 3 4 2 2 2 3 Average Overweight (x) 2 | . 2 2 2 2 2 2 Largest Inventory Capacity 25 | 8 25 25 25 25 25 25 Average Capacity 24 | 6 24 25 25 25 25 25 Most Carried 19 | 2 8 16 18 19 18 18 Average Carried 10 | 1 4 9 16 18 17 17 Final Capacity 25 | 8 25 25 25 25 25 25 Final Carried 18 | 2 6 15 18 18 18 14 Class Distribution -------------------- 100% | Mutant Dominant Class ---------------- Mutant | -10/Materials Mutant | -9/Materials Mutant | -9/Mines Mutant | -9/Exiles Mutant | -8/Mines Mutant | -8/Materials Resources | -11 -10 -9 -9 -9 -8 -8 ----------- Run | Yrd Mat Mat Min Exi Min Mat Matter Collected 1248 | 225 325 54 58 400 124 62 Remotely . | . . . . . . . Salvage Created 1080 | . 589 54 99 . 151 187 Parts 72 | . 49 2 8 . 7 6 Haulers Intercepted 2 | . 2 . . . . . Recyclers Shooed 2 | . 2 . . . . . Parts Field Recycled . | . . . . . . . Retrieved Matter . | . . . . . . . Parts Self-Destructed . | . . . . . . . Prevented . | . . . . . . . Kills | -11 -10 -9 -9 -9 -8 -8 ------- Run | Yrd Mat Mat Min Exi Min Mat Combat Hostiles Destroyed 22 | . 14 1 2 . 3 2 Guns 22 | . 14 1 2 . 3 2 Classes Destroyed 11 | . 6 1 2 . . 2 Worker 1 | . . . . . . 1 Builder 2 | . 2 . . . . . Tunneler 1 | . . . 1 . . . Hauler 2 | . 2 . . . . . Recycler 1 | . . . . . . 1 Mechanic 1 | . 1 . . . . . Watcher 1 | . 1 . . . . . Swarmer 6 | . 6 . . . . . Grunt 13 | . 8 . 1 . 3 1 Duelist 1 | . . . 1 . . . Sentry 2 | . . 1 . . . 1 Best Kill Streak 3 | . 3 1 2 . 2 2 Combat Bots Only 3 | . 3 1 2 . 2 1 Max Kills in Single Turn 1 | . 1 1 1 . 1 1 Gunslinging . | . . . . . . . Exploded . | . . . . . . . Melee . | . . . . . . . Uniques/NPCs Destroyed . | . . . . . . . Combat | -11 -10 -9 -9 -9 -8 -8 -------- Run | Yrd Mat Mat Min Exi Min Mat Hostile Shots Fired 148 | . 86 8 10 . 25 19 Missed 43 | . 28 3 2 . 4 6 Damage Taken 1566 | . 559 73 128 . 373 433 Core 95 | . 67 13 . . . 15 Absorbed by Shields . | . . . . . . . Redirected to Shielding 52 | . 35 17 . . . . Core Remaining (%) 89 | 100 73 . . . 96 . Volleys Fired 119 | . 78 4 6 . 19 12 Largest 2 | . 2 2 2 . 2 2 Hottest 72 | . 40 43 43 . 43 72 Shots Fired 234 | . 155 8 12 . 38 21 Gun 229 | . 155 8 12 . 38 16 Cannon . | . . . . . . . Launcher 5 | . . . . . . 5 Special . | . . . . . . . Kinetic 229 | . 155 8 12 . 38 16 Thermal . | . . . . . . . Explosive . | . . . . . . . Electromagnetic 5 | . . . . . . 5 Robot Hit Streak 12 | . 8 5 10 . 12 6 Robot Miss Streak 6 | . 6 1 1 . 1 2 Penetration Max . | . . . . . . . Secondary Targets 2 | . 2 . . . . . Max Gunslinging Chain 1 | . 1 . . . . . Shots Hit Robots 144 | . 84 6 10 . 31 13 Core Hits 59 | . 34 2 6 . 10 7 Critical Kills 1 | . 1 . . . . . Critical Parts Destroyed . | . . . . . . . Critical Strikes 1 | . 1 . . . . . Destroy 1 | . 1 . . . . . Melee Attacks . | . . . . . . . Impact . | . . . . . . . Slashing . | . . . . . . . Piercing . | . . . . . . . Sneak Attacks . | . . . . . . . Combat Hostiles . | . . . . . . . Follow-up Attacks . | . . . . . . . Damage Inflicted 1913 | . 954 100 134 . 428 297 Guns 1766 | . 954 100 134 . 428 150 Cannons . | . . . . . . . Explosions 147 | . . . . . . 147 Melee . | . . . . . . . Ramming . | . . . . . . . Kinetic 1766 | . 954 100 134 . 428 150 Thermal . | . . . . . . . Explosive . | . . . . . . . Electromagnetic 147 | . . . . . . 147 Impact . | . . . . . . . Slashing . | . . . . . . . Piercing . | . . . . . . . Highest Corruption 1 | . . . . . . 1 Average Corruption 1 | . . . . . . 1 Corruption Purged . | . . . . . . . Corruption Blocked . | . . . . . . . Effects 1 | . . . . . . 1 Message Errors 1 | . . . . . . 1 Overload Shots . | . . . . . . . Overflow Damage . | . . . . . . . Projectiles . | . . . . . . . Explosions . | . . . . . . . Melee . | . . . . . . . Knockbacks . | . . . . . . . Impact . | . . . . . . . Kinetic . | . . . . . . . Secondary . | . . . . . . . Self-Inflicted Damage 25 | . . . . . . 25 Shots 1 | . . . . . . 1 Rammed . | . . . . . . . Targets Rammed . | . . . . . . . Kicked . | . . . . . . . Crushed . | . . . . . . . Highest Temperature 184 | . 20 2 21 . 184 18 Average Temperature 37 | . 5 2 12 . 118 5 Received Heat Transfer 498 | . 156 18 36 . 243 45 Siege Activations . | . . . . . . . Robots Corrupted . | . . . . . . . Combat Hostiles . | . . . . . . . Parts Fried . | . . . . . . . Impact Corruptions . | . . . . . . . Robots Melted . | . . . . . . . Combat Hostiles . | . . . . . . . Parts Melted . | . . . . . . . Heat Transferred . | . . . . . . . Parts Sabotaged . | . . . . . . . Parts Stolen . | . . . . . . . Parts Stripped . | . . . . . . . Power Chain Reactions . | . . . . . . . Alert | -11 -10 -9 -9 -9 -8 -8 ------- Run | Yrd Mat Mat Min Exi Min Mat Peak Influence 254 | . 254 100 109 . 70 116 Initial 65 | . . 65 39 . . 27 Average 85 | . 99 88 88 . 17 79 Maximum Alert Level 1 | . 1 . . . . . Low Security (%) 95 | 100 91 100 100 . 100 100 Level 1 4 | . 8 . . . . . Level 2 . | . . . . . . . Level 3 . | . . . . . . . Level 4 . | . . . . . . . Level 5 . | . . . . . . . High Security . | . . . . . . . Max Security . | . . . . . . . Squads Dispatched 4 | . 2 . . . . 2 Investigation 2 | . 1 . . . . 1 Extermination . | . . . . . . . Reinforcement 2 | . 1 . . . . 1 Assault . | . . . . . . . Garrison . | . . . . . . . Intercept . | . . . . . . . Searches Triggered . | . . . . . . . Construction Impeded . | . . . . . . . Haulers Reinforced . | . . . . . . . Active Scanning Responses . | . . . . . . . Cargo Convoy Interrupts . | . . . . . . . Stealth | -11 -10 -9 -9 -9 -8 -8 --------- Run | Yrd Mat Mat Min Exi Min Mat Distress Signals . | . . . . . . . Communications Jammed . | . . . . . . . Distress Signals . | . . . . . . . Times Spotted 38 | . 23 1 2 . 3 9 Peak Tracking Total 8 | . 3 1 2 . 3 8 Tactical Retreats 1 | . 1 . . . . . Traps | -11 -10 -9 -9 -9 -8 -8 ------- Run | Yrd Mat Mat Min Exi Min Mat Traps Triggered 3 | . 2 . . . . 1 Indirectly . | . . . . . . . Trap Hack Attempts . | . . . . . . . Triggered . | . . . . . . . Disarmed . | . . . . . . . Reprogrammed . | . . . . . . . Reused . | . . . . . . . Traps Extracted . | . . . . . . . Installed . | . . . . . . . Triggered . | . . . . . . . Machines | -11 -10 -9 -9 -9 -8 -8 ---------- Run | Yrd Mat Mat Min Exi Min Mat Machines Disabled . | . . . . . . . Max in Single Turn . | . . . . . . . Machines Repaired . | . . . . . . . Machines Dismantled . | . . . . . . . Machines Sabotaged . | . . . . . . . Overloaded Fab Kills . | . . . . . . . Hacking | -11 -10 -9 -9 -9 -8 -8 --------- Run | Yrd Mat Mat Min Exi Min Mat Machines Accessed 7 | . 3 2 . 1 . 1 Terminals 6 | . 3 2 . . . 1 Fabricators . | . . . . . . . Repair Stations . | . . . . . . . Recycling Units . | . . . . . . . Scanalyzers . | . . . . . . . Garrison Access . | . . . . . . . Total Hacks 15 | . 6 5 . 1 . 3 Successful 7 | . 2 3 . 1 . 1 Failed 8 | . 4 2 . . . 2 Catastrophic 1 | . 1 . . . . . Database Lockouts . | . . . . . . . Manual 8 | . 3 2 . . . 3 Terminals 14 | . 6 5 . . . 3 Fabricators . | . . . . . . . Repair Stations . | . . . . . . . Recycling Units . | . . . . . . . Scanalyzers . | . . . . . . . Garrison Access . | . . . . . . . Terminal Hacks 4 | . 1 2 . 1 . . Record 1 | . . . . 1 . . Level Access Points 1 | . 1 . . . . . Branch Access Points 1 | . . 1 . . . . Locate Traps 1 | . . 1 . . . . Fabricator Hacks . | . . . . . . . Repair Station Hacks . | . . . . . . . Recycling Unit Hacks . | . . . . . . . Scanalyzer . | . . . . . . . Garrison Access Hacks . | . . . . . . . Unauthorized Hacks 3 | . 1 1 . . . 1 Terminals 3 | . 1 1 . . . 1 Botnet 3 | . 1 1 . . . 1 Fabricators . | . . . . . . . Repair Stations . | . . . . . . . Recycling Units . | . . . . . . . Scanalyzers . | . . . . . . . Garrison Access . | . . . . . . . Data Cores Recovered . | . . . . . . . Used . | . . . . . . . Hacking Detections 5 | . 2 2 . . . 1 Full Trace Events 2 | . 1 1 . . . . Feedback Events . | . . . . . . . Feedback Blocked . | . . . . . . . Robot Schematics Acquired . | . . . . . . . Robots Built . | . . . . . . . Authchips . | . . . . . . . Time . | . . . . . . . Total Robot Build Rating . | . . . . . . . Part Schematics Acquired . | . . . . . . . Parts Built . | . . . . . . . Authchips . | . . . . . . . Time . | . . . . . . . Total Part Build Rating . | . . . . . . . Parts Repaired . | . . . . . . . Time . | . . . . . . . Parts Recycled . | . . . . . . . Recycled Matter . | . . . . . . . Retrieved Matter . | . . . . . . . Retrieved Components . | . . . . . . . Parts Scanalyzed . | . . . . . . . Part Schematics Acquired . | . . . . . . . Parts Damaged . | . . . . . . . Bothacking | -11 -10 -9 -9 -9 -8 -8 ------------ Run | Yrd Mat Mat Min Exi Min Mat Used RIF Installer . | . . . . . . . Robots Hacked . | . . . . . . . Non-combat . | . . . . . . . Combat . | . . . . . . . Robot Hacks Applied . | . . . . . . . Relay Couplers Released . | . . . . . . . Fabnet Peak Effective % . | . . . . . . . Robots Rewired . | . . . . . . . Allies Hacked . | . . . . . . . Hacks Repelled . | . . . . . . . Allies | -11 -10 -9 -9 -9 -8 -8 -------- Run | Yrd Mat Mat Min Exi Min Mat Total Allies . | . . . . . . . Largest Group . | . . . . . . . Highest-Rated Group . | . . . . . . . Highest-Rated Ally . | . . . . . . . Total Orders . | . . . . . . . Ally Attacks . | . . . . . . . Total Damage . | . . . . . . . Kills . | . . . . . . . Allies Corrupted . | . . . . . . . Allies Melted . | . . . . . . . Intel | -11 -10 -9 -9 -9 -8 -8 ------- Run | Yrd Mat Mat Min Exi Min Mat Robot Analysis Total . | . . . . . . . Derelict Logs Recovered 1 | . . . 1 . . . Drone Launches . | . . . . . . . Drone Recoveries . | . . . . . . . Exploration | -11 -10 -9 -9 -9 -8 -8 ------------- Run | Yrd Mat Mat Min Exi Min Mat Turns Passed 1906 | 64 868 219 196 271 99 189 Spaces Moved 999 | 41 334 127 134 225 26 112 Core 10 | 10 . . . . . . Treads 123 | 31 92 . . . . . Legs . | . . . . . . . Wheels 866 | . 242 127 134 225 26 112 Hover . | . . . . . . . Flight . | . . . . . . . Fastest Speed 50 | 50 135 120 120 120 120 120 Average Speed 142 | 133 180 129 120 120 120 120 Slowest Speed 320 | 160 320 150 120 120 120 135 Overloaded Moves . | . . . . . . . Propulsion Burnouts . | . . . . . . . Robots Hopped . | . . . . . . . Cave-ins Triggered . | . . . . . . . Exploration Rate (%) 30 | 3 77 14 36 59 10 16 Regions Visited 6 Branch Regions 3 Pre-discovered Areas 2 | . . . 1 1 . . Known Exits Taken 5 | . 1 1 1 1 1 . Unknown Exits Taken 1 | 1 . . . . . . Scrap Searched 1 | . . . . . 1 . Spaces Dug . | . . . . . . . Terrain Destroyed . | . . . . . . . Melee . | . . . . . . . Projectile . | . . . . . . . AOE . | . . . . . . . Terrain Rammed . | . . . . . . . Walls Destroyed . | . . . . . . . Machines Disabled . | . . . . . . . Actions | -11 -10 -9 -9 -9 -8 -8 --------- Run | Yrd Mat Mat Min Exi Min Mat Total 1262 | 48 459 174 157 226 56 142 Wait 81 | . 29 24 13 . 8 7 Move 993 | 40 333 126 133 224 25 112 Hop . | . . . . . . . Pick Up 25 | 2 8 8 3 1 2 1 Fast Attach 13 | 6 3 4 . . . . Attach 12 | . 3 2 1 . 1 5 Detach 1 | . . 1 . . . . Swap 7 | . 1 1 . . . 5 Drop 11 | . 4 4 1 1 1 . Fire 119 | . 78 4 6 . 19 12 Melee . | . . . . . . . Ram . | . . . . . . . Kick . | . . . . . . . Crush . | . . . . . . . Escape Stasis . | . . . . . . . Rewire . | . . . . . . . Trap . | . . . . . . . Miscellaneous . | . . . . . . . Route ------- -11/Scrapyard -10/Materials (discovered 4 exits: *Mat x3 / [*Min]) -9/Materials (discovered 4 exits: *Min x2 / Sto x2) -9/Mines (discovered 2 exits: *Mat / *Exi) -9/Exiles -8/Mines -8/Materials History --------- Turn | Location | Event 9 | -11/Scrapyard | Discovered new exit (range 15) 65 | -11/Scrapyard | Entered Materials 309 | -10/Materials | Build established: Mutant 472 | -10/Materials | Discovered new exit (range 12) 598 | -10/Materials | Identified exit to Materials 933 | -10/Materials | Entered another Materials area 933 | -9/Materials | Evolved 2 slots: Propulsion x1, Utility x1 1114 | -9/Materials | Discovered new exit (range 16) 1124 | -9/Materials | Identified exit to Mines 1124 | -9/Materials | Identified exit to Storage 1152 | -9/Materials | Entered Mines 1174 | -9/Mines | Received a Rocket Launcher from a helpful Derelict 1293 | -9/Mines | Learned location of Zion (-6) 1320 | -9/Mines | Discovered new exit (range 10) 1320 | -9/Mines | Discovered new exit (range 10) 1339 | -9/Mines | Identified exit to Materials 1341 | -9/Mines | Identified exit to Exiles 1348 | -9/Mines | Entered Exiles 1377 | -9/Exiles | Met 8R-AWN 1400 | -9/Exiles | Met EX-HEX 1454 | -9/Exiles | Met EX-DEC 1603 | -9/Exiles | Discovered new exit (range 14) 1616 | -9/Exiles | Identified exit to Mines 1619 | -9/Exiles | Entered Mines 1642 | -8/Mines | Discovered exit to Materials (range 9) 1718 | -8/Mines | Entered Materials 1718 | -8/Materials | Evolved 2 slots: Propulsion x1, Utility x1 1907 | -8/Materials | Self-destructed Last Messages --------------- 01893_ U-05 Engineer lays Concrete. 01894_ ZI3AJFC/MB 01900_ Hvy. Armor Plating destroyed. 01900_ Knocked back. 01900_ Triggered Alarm Trap. 01900_ An alarm sounds. 01900_ ALERT: Alarm triggered, dispatching investigation squad. 01901_ U-05 Engineer lays Concrete. 01902_ Adv. EMP Blaster destroyed. 01902_ Arm. Wheel destroyed. 01902_ Arm. Wheel blasted off. 01903_ U-05 Engineer lays Concrete. 01904_ R-06 Scavenger collects Arm. Wheel. 01904_ U-05 Engineer lays Concrete. 01905_ Lgt. Ion Engine destroyed. 01905_ Adv. EMP Blaster blasted off. 01905_ U-05 Engineer lays Concrete. 01906_ R-06 Scavenger collects Adv. EMP Blaster. Map ----- +----------------------------------------------------+ | ?????????????????????????????????????????????????? | | ?????????????????????????????????????????????????? | | ?????????????????????????????????????????????????? | | ?????????????????????????????????????????????????? | | ?????????????????????????????????????????????????? | | ?????????????????????????????????????????????????? | | ?????????????????????????????????????????????????? | | ?????????????????????????????????????????????????? | | ?????????????????????????????????????????????????? | | ?????????????????????????????????????????????????? | | ?????????????????????????????????????????????????? | | ?????????????????????????? ????????????????????? | | ?????????????????????????? ???????????????????? | | ?????????????????????????? !???????????????????? | | ?????????????????????????? #???????????????????? | | ?????????????????????????? #???????????????????? | | ?????????????????????????? #???????????????????? | | ?????????????????????????? #???????????????????? | | ?????????????????????????# #???????????????????? | | ?????????????????????????# #???????????????????? | | ???????????????????####### #???????????????????? | | ??????????????????##!!!!## #???????????????????? | | ??????????????????#! !# #???????????????????? | | ??????????????????# # #???????????????????? | | ????####+########## %# #####???????????????? | | ????# @%r !!#???????????????? | | ????# g r rr u u!!#???????????????? | | ????# %g g !!#???????????????? | | ??????+########/########## %% u!!#???????????????? | | ????????????#/ #?????# ==#???????????????? | | ????????????# #?????# ==#???????????????? | | ????????????#""" /#????? #####???????????????? | | ????????????#""" #?????# #???????????????????? | | ????????????#""" #?????# #???????????????????? | | ????????????# #?????# H #???????????????????? | | ????????????#+######????? ???????????????????? | | ????????????# #?????????? ???????????????????? | | ????????????# #?????????? #??????????????????? | | ???????###### #?????????? #??????????????????? | | ???????# ]!!# #?????????? #??????????????????? | | ???????# ]!!# #??????????# ##??????????????????? | | ???????# !!!# #??????????? #???????????????????? | | ???????# # #??????????? #???????????????????? | | ???????# # #??????????? ????????????????????? | | ???????# # #??????????????????????????????????? | | ???????# + #??????????????????????????????????? | | ???????# # #??????????????????????????????????? | | ???????#= =# ##+#??######???????????????????????? | | ???????###### #??# ???????????????????????? | | ???????# *# #??# ????????????????????????? | +----------------------------------------------------+ Best States ------------- Heat Dissipation 38 Energy Generation 14 Energy Capacity 250 Matter Stores 300 Matter Capacity 300 Sight Range 16 Terrain Scan Density 10 Armor Coverage 600 Weapon Shielding 33 Evasion (%) 50 Recoil Reduction 2 Item Schematics ----------------- None Robot Schematics ------------------ None Fabricated ------------ Nothing Alien Tech Used ----------------- None Achievements -------------- None Challenges ------------ None Game ------ Seed TerrabombImprinterGun Manual? 0 Play Time 00:15:10 Cumulative 115.6 hours Start 2024.04.27 @ 14:03:44 End 2024.04.27 @ 14:16:50 Sessions 1 Manual Loads 0 Difficulty Rogue Special Mode None Game No. 149 Rogue 149 Adventurer 0 Explorer 0 Win Type - Total 1 Types 1/0/0/0/0/0/0/0/0 Lore% 48 Gallery% 53 Achievement% 50 Wizard Run 0 Options --------- Layout 1 ASCII 0 Keyboard 0 Movement Mouse Keybinds 0 Fullscreen 2 Font 32/Smallcaps Map View 50x40 Zoom Use 0% Tactical HUD 1 Map Filters NONE Filters NONE Steam 1 RUN: c009ef10-7fe6-4302-bcc3-528e4bdad52a